bitfinex/quotes_BTCUSD_20241222
["timestamp","ask_amount","ask_price","bid_price","bid_amount"]
[1734839733917,0.2334086,96967.0,96966.0,8.57e-05]
[1734839734115,0.2344086,96967.0,96966.0,8.57e-05]
[1734839734703,0.173,96966.0,96952.0,0.0001]
[1734839734862,0.332883,96954.0,96952.0,0.0001]
[1734839735504,0.1266,96954.0,96952.0,0.0001]
[1734839735747,0.12763088,96954.0,96952.0,0.0001]
[1734839736729,0.12863088,96954.0,96952.0,0.0001]
[1734839739511,0.1276,96954.0,96952.0,0.0001]
[1734839740373,0.12863088,96954.0,96952.0,0.0001]
[1734839747666,0.1276,96954.0,96952.0,0.0001]
[1734839750061,0.12863088,96954.0,96952.0,0.0001]
[1734839756265,0.1276,96954.0,96952.0,0.0001]
[1734839759919,0.12863088,96954.0,96952.0,0.0001]
[1734839760811,0.1276,96954.0,96952.0,0.0001]
[1734839762180,0.12863088,96954.0,96952.0,0.0001]
[1734839763745,0.37993928,96954.0,96952.0,0.0001]
[1734839763957,0.40520586,96954.0,96952.0,0.0001]
[1734839764149,0.41534146,96954.0,96952.0,0.0001]
[1734839765030,0.41434146,96954.0,96952.0,0.0001]
[1734839765295,0.43467923,96954.0,96952.0,0.0001]
[1734839765505,0.43667923,96954.0,96952.0,0.0001]
[1734839765703,0.43567923,96954.0,96952.0,0.0001]
[1734839765918,0.52834986,96954.0,96952.0,0.0001]
[1734839766135,0.53034986,96954.0,96952.0,0.0001]
[1734839766329,0.15,96942.0,96930.0,0.206332]
[1734839766536,0.05636446,96940.0,96930.0,0.20645586]
[1734839766750,0.00103088,96939.0,96930.0,0.20645586]
[1734839767385,0.01933777,96938.0,96930.0,0.20645586]
[1734839767520,0.00103088,96937.0,96930.0,0.20845586]
[1734839767733,0.00103088,96937.0,96930.0,0.20645586]
[1734839767934,0.01933777,96936.0,96930.0,0.20645586]
[1734839768136,0.00103088,96935.0,96930.0,0.20945586]
[1734839768340,0.02036865,96935.0,96930.0,0.20745586]
[1734839768893,0.01933777,96934.0,96930.0,0.20645586]
[1734839769103,0.00103088,96933.0,96930.0,0.20845586]
[1734839769254,0.02036865,96933.0,96930.0,0.20845586]
[1734839769456,0.02036865,96933.0,96930.0,0.20645586]
[1734839770063,0.01933777,96932.0,96930.0,0.20645586]
[1734839770348,0.00103088,96931.0,96930.0,0.21245586]
[1734839770622,0.02036865,96931.0,96930.0,0.20645586]
[1734839771358,0.01933777,96931.0,96930.0,0.20645586]
[1734839771542,0.001,96933.0,96930.0,0.20645586]
[1734839771986,0.00103088,96941.0,96930.0,0.20645586]
[1734839772339,0.001,96931.0,96930.0,0.20654156]
[1734839772740,0.00103088,96941.0,96930.0,0.20654156]
[1734839773010,0.00403088,96941.0,96930.0,0.20654156]
[1734839773414,0.05636446,96940.0,96930.0,0.20654156]
[1734839773568,0.001,96933.0,96930.0,0.20654156]
[1734839773770,0.00103088,96939.0,96930.0,0.20654156]
[1734839774506,0.00103088,96939.0,96930.0,0.00020956]
[1734839774649,0.001,96933.0,96930.0,0.00020956]
[1734839774864,0.00103088,96939.0,96930.0,0.00020956]
[1734839775243,0.001,96933.0,96930.0,0.00020956]
[1734839775469,0.001,96933.0,96930.0,0.20654156]
[1734839775678,0.00103088,96937.0,96930.0,0.20654156]
[1734839775880,0.01931044,96932.0,96930.0,0.20654156]
[1734839776088,0.00103088,96931.0,96930.0,0.00020956]
[1734839776500,0.02034132,96931.0,96930.0,0.00020956]
[1734839778231,0.02134132,96931.0,96930.0,0.00020956]
[1734839781546,0.10374132,96931.0,96930.0,0.00020956]
[1734839782953,0.02134132,96931.0,96930.0,0.00020956]
[1734839783565,0.02031044,96931.0,96930.0,0.00020956]
[1734839783698,0.01931044,96931.0,96930.0,0.00020956]
[1734839784104,0.02031044,96931.0,96930.0,0.00020956]
[1734839784488,0.001,96931.0,96930.0,0.00020956]
[1734839785130,0.00103088,96938.0,96930.0,0.00020956]
[1734839785364,0.00103088,96938.0,96931.0,0.412664]
[1734839785521,0.0824,96939.0,96931.0,0.412664]
[1734839785948,0.0824,96939.0,96936.0,0.20632]
[1734839786164,0.09267063,96945.0,96930.0,0.00020956]
[1734839786463,0.09267063,96945.0,96942.0,0.206308]
[1734839786878,0.09267063,96945.0,96942.0,0.412616]
[1734839788010,0.09967063,96945.0,96942.0,0.412616]
[1734839788405,0.004,96945.0,96942.0,0.412616]
[1734839788550,0.007,96945.0,96942.0,0.412616]
[1734839789142,0.003,96945.0,96942.0,0.412616]
[1734839789927,0.0001714,96952.0,96951.0,0.206289]
[1734839792245,0.0011714,96952.0,96951.0,0.206289]
[1734839793561,0.0001714,96952.0,96951.0,0.206289]
[1734839793954,0.0011714,96952.0,96951.0,0.206289]
[1734839796076,0.0011714,96952.0,96951.0,0.2063747]
[1734839797602,0.0001714,96952.0,96951.0,0.2063747]
[1734839797960,0.0001714,96952.0,96951.0,0.2824747]
[1734839799235,0.0001714,96952.0,96951.0,0.2844747]
[1734839799412,0.0001714,96952.0,96951.0,0.2824747]
[1734839799609,0.0001714,96952.0,96951.0,0.2854747]
[1734839799774,0.0001714,96952.0,96951.0,0.2864747]
[1734839799979,0.0001714,96952.0,96951.0,0.2834747]
[1734839800219,0.0001714,96952.0,96951.0,0.2894747]
[1734839800820,0.0001714,96952.0,96951.0,0.3363747]
[1734839801030,0.0001714,96952.0,96951.0,0.4366831]
[1734839801181,4e-07,96952.0,96951.0,0.5386831]
[1734839803898,4e-07,96952.0,96951.0,1.0751825]
[1734839806784,4e-07,96952.0,96951.0,0.7886831]
[1734839806969,2e-07,96967.0,96965.0,0.282659]
[1734839807144,2e-07,96967.0,96965.0,0.3839674]
[1734839808125,0.0002259,96966.0,96965.0,0.3839674]
[1734839809369,0.0002259,96966.0,96965.0,0.3899674]
[1734839809573,0.0002259,96966.0,96965.0,0.3155674]
[1734839810802,0.0002259,96966.0,96965.0,0.214259]
[1734839813609,0.0002259,96966.0,96965.0,0.22461584]
[1734839820800,0.0002259,96966.0,96965.0,0.32592424]
[1734839823222,0.0002259,96966.0,96965.0,0.40892424]
[1734839826653,0.0002259,96966.0,96965.0,0.32592424]
[1734839827573,0.0002259,96966.0,96965.0,0.37452424]
[1734839827901,0.0002259,96966.0,96965.0,0.32592424]
[1734839840581,0.0002259,96966.0,96965.0,0.65652424]
[1734839840735,9e-07,96966.0,96965.0,0.65652424]
[1734839841307,9e-07,96966.0,96965.0,0.75652424]
[1734839841504,9e-07,96966.0,96965.0,0.75452424]
[1734839841764,9e-07,96966.0,96965.0,0.75652424]
[1734839842202,7e-07,96968.0,96967.0,0.2]
[1734839842394,7e-07,96968.0,96967.0,0.65859442]
[1734839842595,7e-07,96968.0,96967.0,0.7037634]
[1734839844083,7e-07,96968.0,96967.0,0.7057634]
[1734839844286,7e-07,96968.0,96967.0,0.79753706]
[1734839844911,7e-07,96968.0,96967.0,0.79553706]
[1734839845318,7e-07,96968.0,96967.0,0.7037634]
[1734839845977,7e-07,96968.0,96967.0,1.2432628]
[1734839846221,7e-07,96968.0,96967.0,1.2402628]
[1734839846670,7e-07,96968.0,96967.0,1.3823949]
[1734839847174,7e-07,96968.0,96967.0,1.3833949]
[1734839848328,7e-07,96968.0,96967.0,1.3823949]
[1734839848537,7e-07,96968.0,96967.0,1.3833949]
[1734839848980,7e-07,96968.0,96967.0,1.3793949]
[1734839849368,7e-07,96968.0,96967.0,1.3833949]
[1734839849569,7e-07,96968.0,96967.0,1.41536959]
[1734839850262,7e-07,96968.0,96967.0,1.27723749]
[1734839850481,0.0001716,96988.0,96987.0,0.206213]
[1734839850646,0.0002261,96988.0,96987.0,0.206213]
[1734839852227,0.0012261,96988.0,96987.0,0.206213]
[1734839853358,0.0012261,96988.0,96987.0,0.207213]
[1734839853581,0.0002261,96988.0,96987.0,0.206213]
[1734839853738,0.0012261,96988.0,96987.0,0.207213]
[1734839854139,0.0002261,96988.0,96987.0,0.206213]
[1734839854350,0.0002261,96988.0,96987.0,0.211213]
[1734839854533,0.0002261,96988.0,96987.0,0.212213]
[1734839855883,0.1270261,96988.0,96987.0,0.212213]
[1734839856727,0.1270261,96988.0,96987.0,0.207213]
[1734839856926,0.14633306,96988.0,96987.0,0.212213]
[1734839857134,0.14633306,96988.0,96980.0,0.206228]
[1734839857135,0.0788,96987.0,96980.0,0.206228]
[1734839857335,0.0788,96985.0,96980.0,0.206228]
[1734839857554,0.0788,96983.0,96980.0,0.206228]
[1734839857737,0.00103088,96982.0,96980.0,0.206228]
[1734839857940,0.1268,96981.0,96974.0,0.206239]
[1734839858151,0.07983088,96980.0,96974.0,0.206239]
[1734839858351,0.07983088,96980.0,96974.0,0.412478]
[1734839858690,0.0788,96979.0,96978.0,0.20623]
[1734839858861,0.09810696,96979.0,96978.0,0.20623]
[1734839860208,0.09810696,96979.0,96978.0,0.20723]
[1734839860362,0.09810696,96979.0,96978.0,0.20623]
[1734839860519,0.09910696,96979.0,96978.0,0.20723]
[1734839860966,0.09810696,96979.0,96978.0,0.20723]
[1734839862785,0.09810696,96979.0,96978.0,0.20623]
[1734839862980,0.09810696,96979.0,96978.0,0.20823]
[1734839863191,0.09810696,96979.0,96978.0,0.20623]
[1734839863557,0.09810696,96979.0,96978.0,0.20823]
[1734839863837,0.09810696,96979.0,96978.0,0.20623]
[1734839864236,0.10010696,96979.0,96978.0,0.20623]
[1734839864601,0.09810696,96979.0,96978.0,0.20623]
[1734839864939,0.09910696,96979.0,96978.0,0.20623]
[1734839866443,0.09810696,96979.0,96978.0,0.20623]
[1734839867428,0.09910696,96979.0,96978.0,0.20623]
[1734839867745,0.09810696,96979.0,96978.0,0.20623]
[1734839867949,0.09810696,96979.0,96978.0,0.20723]
[1734839868400,0.09910696,96979.0,96978.0,0.20723]
[1734839869607,0.09910696,96979.0,96978.0,0.20623]
[1734839870124,0.09810696,96979.0,96978.0,0.20623]
[1734839870301,0.09910696,96979.0,96978.0,0.20623]
[1734839870599,0.09910696,96979.0,96978.0,0.20723]
[1734839870796,0.09810696,96979.0,96978.0,0.20623]
[1734839871003,0.09810696,96979.0,96978.0,0.20723]
[1734839872470,0.09810696,96979.0,96978.0,0.20623]
[1734839872788,0.09810696,96979.0,96978.0,0.20723]
[1734839873091,0.09810696,96979.0,96978.0,0.20623]
[1734839873293,0.09810696,96979.0,96978.0,0.20823]
[1734839873536,0.0788,96979.0,96978.0,0.20823]
[1734839874154,0.09810696,96979.0,96978.0,0.20623]
[1734839874312,0.09810696,96979.0,96978.0,0.20823]
[1734839874512,0.0788,96979.0,96978.0,0.20823]
[1734839874999,0.09810696,96979.0,96978.0,0.20823]
[1734839875624,0.0788,96979.0,96978.0,0.20623]
[1734839875973,0.0788,96979.0,96978.0,0.20923]
[1734839876172,0.0788,96979.0,96978.0,0.20623]
[1734839876385,0.0788,96979.0,96978.0,0.21023]
[1734839876586,0.0788,96979.0,96978.0,0.21123]
[1734839877396,0.0788857,96979.0,96978.0,0.21123]
[1734839879656,0.09817396,96979.0,96978.0,0.21123]
[1734839880411,0.14777396,96979.0,96978.0,0.21123]
[1734839881865,0.09817396,96979.0,96978.0,0.20723]
[1734839882068,0.09817396,96979.0,96978.0,0.20623]
[1734839882468,0.10117396,96979.0,96978.0,0.20623]
[1734839883455,0.0788857,96979.0,96978.0,0.21023]
[1734839884444,0.0788857,96979.0,96978.0,0.21123]
[1734839890796,0.0788857,96979.0,96978.0,0.005]
[1734839892496,0.0982247,96979.0,96978.0,0.005]
[1734839893489,0.0788857,96979.0,96978.0,0.005]
[1734839900810,0.07991658,96979.0,96978.0,0.005]
[1734839902561,0.21892248,96979.0,96978.0,0.005]
[1734839902757,0.2178916,96979.0,96978.0,0.005]
[1734839903567,0.42141433,96979.0,96978.0,0.005]
[1734839904755,0.2642269,96979.0,96978.0,0.005]
[1734839905949,0.42141433,96979.0,96978.0,0.005]
[1734839906915,0.0788857,96979.0,96978.0,0.005]
[1734839907065,0.07991658,96979.0,96978.0,0.005]
[1734839908240,0.42244521,96979.0,96978.0,0.005]
[1734839908393,0.42141433,96979.0,96978.0,0.004]
[1734839908590,0.42141433,96979.0,96974.0,0.206239]
[1734839908792,0.00103088,96978.0,96974.0,0.206239]
[1734839910558,0.13917953,96977.0,96974.0,0.206239]
[1734839910733,0.00103088,96976.0,96974.0,0.206239]
[1734839912209,0.00203088,96976.0,96974.0,0.206239]
[1734839915080,0.09277732,96975.0,96974.0,0.206239]
[1734839915963,0.0948082,96976.0,96974.0,0.206239]
[1734839916967,0.09277732,96975.0,96974.0,0.206239]
[1734839917217,0.09377732,96975.0,96974.0,0.206239]
[1734839917624,0.09277732,96975.0,96974.0,0.206239]
[1734839918269,0.0948082,96976.0,96974.0,0.206239]
[1734839919326,0.0948082,96976.0,96970.0,0.206248]
[1734839919759,0.09277732,96975.0,96970.0,0.206248]
[1734839919907,0.00103088,96974.0,96970.0,0.206248]
[1734839920824,0.09277732,96973.0,96970.0,0.206248]
[1734839921118,0.075,96971.0,96968.0,0.0001714]
[1734839921319,0.00103088,96970.0,96968.0,0.0001714]
[1734839921668,0.075,96969.0,96968.0,0.0001714]
[1734839921869,0.07603088,96969.0,96968.0,0.0001714]
[1734839922470,0.075,96969.0,96968.0,0.0001714]
[1734839922724,0.075,96969.0,96968.0,0.2064244]
[1734839922973,0.075,96969.0,96968.0,0.0001714]
[1734839923224,0.07603088,96969.0,96968.0,0.0001714]
[1734839923611,0.07603088,96969.0,96968.0,0.0021714]
[1734839923863,0.07603088,96969.0,96968.0,0.0001714]
[1734839924109,0.07603088,96969.0,96968.0,0.0031714]
[1734839924626,0.07603088,96969.0,96968.0,0.0001714]
[1734839924855,0.07603088,96969.0,96968.0,0.0011714]
[1734839925098,0.07703088,96969.0,96968.0,0.0011714]
[1734839928755,0.16977881,96969.0,96968.0,0.0011714]
[1734839930036,0.07703088,96969.0,96968.0,0.0011714]
[1734839933318,0.16978459,96969.0,96968.0,0.0011714]
[1734839934079,0.07703088,96969.0,96968.0,0.0011714]
[1734839935313,0.07711658,96969.0,96968.0,0.0011714]
[1734839936746,0.16987987,96969.0,96968.0,0.0011714]
[1734839937681,0.0010857,96969.0,96968.0,0.0011714]
[1734839939360,8.57e-05,96969.0,96968.0,0.00220255]
[1734839939570,8.57e-05,96969.0,96968.0,0.00120255]
[1734839939746,8.57e-05,96969.0,96968.0,0.00420255]
[1734839940739,8.57e-05,96969.0,96968.0,0.23011095]
[1734839941054,8.57e-05,96969.0,96968.0,0.9155792]
[1734839942622,8.57e-05,96969.0,96968.0,0.9125792]
[1734839942774,8.57e-05,96969.0,96968.0,0.9155792]
[1734839942962,8.57e-05,96969.0,96968.0,0.9125792]
[1734839943428,8.57e-05,96969.0,96968.0,0.9215792]
[1734839943739,7e-07,96969.0,96968.0,0.4850798]
[1734839944112,7e-07,96969.0,96968.0,0.4760798]
[1734839944332,7e-07,96969.0,96968.0,0.4790798]
[1734839944515,7e-07,96969.0,96968.0,0.4880798]
[1734839944721,7e-07,96969.0,96968.0,0.4850798]
[1734839945241,7e-07,96969.0,96968.0,0.4890798]
[1734839945447,7e-07,96969.0,96968.0,0.58101439]
[1734839946279,7e-07,96969.0,96968.0,0.57201439]
[1734839946641,7e-07,96969.0,96968.0,0.58101439]
[1734839946868,7e-07,96969.0,96968.0,0.57201439]
[1734839947045,7e-07,96969.0,96968.0,0.58101439]
[1734839947230,7e-07,96969.0,96968.0,0.4890798]
[1734839948014,7e-07,96969.0,96968.0,1.0255792]
[1734839960760,7e-07,96969.0,96968.0,1.0125792]
[1734839961196,7e-07,96969.0,96968.0,1.0245792]
[1734839962490,7e-07,96969.0,96968.0,1.1245792]
[1734839972535,7e-07,96969.0,96968.0,1.1565185]
[1734839976422,7e-07,96969.0,96968.0,1.0781185]
[1734839981505,7e-07,96969.0,96968.0,1.216212]
[1734839982834,7e-07,96969.0,96968.0,1.0781185]
[1734839985085,0.0829714,96992.0,96968.0,1.0781185]
[1734839985086,9e-07,96995.0,96990.0,0.1]
[1734839985311,0.0001,97029.0,96998.0,0.5364994]
[1734839985312,0.0467,97012.0,96998.0,0.5364994]
[1734839985473,0.0928553,97009.0,97008.0,0.206168]
[1734839985667,0.0928553,97009.0,97008.0,0.3074764]
[1734839987116,0.0001,97009.0,97008.0,0.3074764]
[1734839987279,0.0011,97009.0,97008.0,0.3074764]
[1734839987726,0.0001,97009.0,97008.0,0.3074764]
[1734839988176,0.0001,97009.0,97008.0,0.3124764]
[1734839988397,0.077,97009.0,97008.0,0.3124764]
[1734839989839,0.077,97009.0,97008.0,0.211168]
[1734839990447,0.077,97009.0,97008.0,0.2215167]
[1734839994027,0.0770857,97009.0,97008.0,0.2215167]
[1734840002032,0.0770857,97009.0,97008.0,0.211168]
[1734840003231,0.0780857,97009.0,97008.0,0.211168]
[1734840003481,0.0780857,97009.0,97008.0,0.206168]
[1734840003692,0.0780857,97009.0,97008.0,0.207168]
[1734840004073,0.0780857,97009.0,97008.0,0.206168]
[1734840004268,0.0780857,97009.0,97008.0,0.211168]
[1734840005067,0.0770857,97009.0,97008.0,0.211168]
[1734840005491,0.0770857,97009.0,97008.0,0.212168]
[1734840005892,0.0770857,97009.0,97008.0,0.211168]
[1734840006406,0.0770857,97009.0,97008.0,0.206168]
[1734840006812,0.0770857,97009.0,97008.0,0.209168]
[1734840007019,0.0770857,97009.0,97008.0,0.206168]
[1734840007438,0.0770857,97009.0,97008.0,0.209168]
[1734840013176,0.0770857,97009.0,97008.0,0.206168]
[1734840013384,0.0770857,97009.0,97008.0,0.210168]
[1734840013576,0.07697145,97009.0,97008.0,0.210168]
[1734840013780,0.07697145,97009.0,97008.0,0.206168]
[1734840013984,0.07668408,97009.0,97008.0,0.206168]
[1734840014190,0.07668408,97009.0,97008.0,0.210168]
[1734840014363,0.07668408,97009.0,97008.0,0.206168]
[1734840015760,0.0764775,97009.0,97008.0,0.206168]
[1734840016167,0.0764775,97009.0,97008.0,0.209168]
[1734840016568,0.0764775,97009.0,97008.0,0.206168]
[1734840016770,0.0764775,97009.0,97008.0,0.210168]
[1734840017206,8.57e-05,97009.0,97008.0,0.3114764]
[1734840017424,0.00014078,97019.0,97017.0,0.206149]
[1734840017823,8.424e-05,97019.0,97017.0,0.206149]
[1734840018680,0.00016852,97019.0,97017.0,0.206149]
[1734840018850,0.0783,97018.0,97017.0,0.206149]
[1734840019917,0.07884068,97018.0,97017.0,0.206149]
[1734840020123,0.07884068,97018.0,97017.0,0.207149]
[1734840020904,0.07884068,97018.0,97017.0,0.21752388]
[1734840021264,0.07875529,97018.0,97017.0,0.21752388]
[1734840023554,0.0779371,97018.0,97017.0,0.21752388]
[1734840027716,0.001,97018.0,97017.0,0.21752388]
[1734840035475,0.001,97018.0,97017.0,0.44443228]
[1734840036929,9.2e-07,97020.0,97019.0,0.206145]
[1734840037134,9.2e-07,97020.0,97019.0,0.4574534]
[1734840038395,9.2e-07,97020.0,97019.0,0.4584534]
[1734840038895,9.2e-07,97020.0,97019.0,0.4624534]
[1734840039089,9.2e-07,97020.0,97019.0,0.595547]
[1734840039341,9.2e-07,97020.0,97019.0,0.695547]
[1734840039513,3.2e-07,97024.0,97020.0,0.1]
[1734840039658,3.2e-07,97024.0,97021.0,0.30847882]
[1734840039853,3.2e-07,97024.0,97021.0,0.51461882]
[1734840040308,0.0001714,97054.0,97043.0,0.206094]
[1734840040509,0.00023316,97044.0,97043.0,0.3074024]
[1734840041690,0.00023316,97044.0,97043.0,0.3084024]
[1734840042753,0.00023316,97044.0,97043.0,0.3134024]
[1734840044324,0.00023316,97044.0,97043.0,0.8499018]
[1734840044994,0.00023316,97044.0,97043.0,0.86048119]
[1734840050236,0.00023316,97044.0,97043.0,1.08648119]
[1734840052086,1.6e-07,97044.0,97043.0,1.08648119]
[1734840053139,1.6e-07,97044.0,97043.0,1.01048119]
[1734840053343,0.07650016,97044.0,97043.0,0.75917279]
[1734840053541,0.12330016,97044.0,97043.0,0.212094]
[1734840054197,0.12330016,97044.0,97043.0,0.211094]
[1734840054815,0.12330016,97044.0,97043.0,0.206094]
[1734840055206,0.12330016,97044.0,97043.0,0.210094]
[1734840055435,0.12330016,97044.0,97043.0,0.206094]
[1734840055837,0.12330016,97044.0,97043.0,0.207094]
[1734840056648,0.12330016,97044.0,97043.0,0.206094]
[1734840056950,0.12330016,97044.0,97043.0,0.207094]
[1734840058211,0.12330016,97044.0,97043.0,0.206094]
[1734840058418,0.12330016,97044.0,97043.0,0.208094]
[1734840058624,0.12330016,97044.0,97037.0,0.206105]
[1734840058834,0.00103088,97043.0,97017.0,0.0001714]
[1734840059000,0.206132,97026.0,97017.0,0.0001714]
[1734840059206,0.0765,97024.0,97017.0,0.0001714]
[1734840059430,0.0765,97022.0,97017.0,0.0001714]
[1734840059637,0.00103088,97021.0,97017.0,0.0001714]
[1734840060856,0.206143,97020.0,97017.0,0.0001714]
[1734840061074,0.206147,97018.0,97017.0,0.0001714]
[1734840061281,0.0765,97018.0,97017.0,0.0001714]
[1734840061482,0.0765,97018.0,97017.0,0.0031714]
[1734840061886,0.0765,97018.0,97017.0,0.0001714]
[1734840062342,0.17883928,97018.0,97017.0,0.0001714]
[1734840063655,0.18083928,97018.0,97017.0,0.0001714]
[1734840064076,0.07953088,97018.0,97017.0,0.0001714]
[1734840064285,0.0785,97018.0,97017.0,0.0001714]
[1734840064691,0.0765,97018.0,97017.0,0.0001714]
[1734840065242,0.0805,97018.0,97017.0,0.0001714]
[1734840065434,0.004,97018.0,97017.0,0.0001714]
[1734840066373,0.0765,97026.0,97025.0,0.206132]
[1734840067140,0.0468,97034.0,97032.0,0.206117]
[1734840067141,0.0765,97034.0,97032.0,0.206117]
[1734840068228,0.00103088,97033.0,97029.0,0.206121]
[1734840068421,0.00103088,97033.0,97026.0,0.206129]
[1734840068630,0.412235,97032.0,97017.0,0.0001714]
[1734840068837,0.10233928,97031.0,97017.0,0.0001714]
[1734840069008,0.10233928,97031.0,97017.0,0.2063194]
[1734840069209,0.206121,97030.0,97017.0,0.2063194]
[1734840069409,0.00103088,97029.0,97017.0,0.2063194]
[1734840069635,0.0765,97028.0,97017.0,0.2063194]
[1734840069810,0.00103088,97027.0,97017.0,0.2063194]
[1734840071575,0.00303088,97027.0,97017.0,0.2063194]
[1734840072006,0.0478,97026.0,97017.0,0.2073194]
[1734840072129,0.00103088,97025.0,97017.0,0.2063194]
[1734840072332,0.00103088,97025.0,97017.0,0.0001714]
[1734840073992,0.206147,97019.0,97017.0,0.0001714]
[1734840074170,0.07713088,97018.0,97017.0,0.0001714]
[1734840074357,0.20143928,97018.0,97017.0,0.0001714]
[1734840075415,0.20243928,97018.0,97017.0,0.0011714]
[1734840076351,0.35023928,97018.0,97017.0,0.0011714]
[1734840076492,0.52858764,97018.0,97017.0,0.0011714]
[1734840077110,0.52758764,97018.0,97017.0,0.0011714]
[1734840077307,0.53258764,97018.0,97017.0,0.0011714]
[1734840077692,0.52758764,97018.0,97017.0,0.0001714]
[1734840077900,0.54796522,97018.0,97017.0,0.0001714]
[1734840078122,0.53258764,97018.0,97017.0,0.0011714]
[1734840078329,0.53102627,97018.0,97017.0,0.0011714]
[1734840079477,0.53102627,97018.0,97017.0,0.00096901]
[1734840079836,0.52602627,97018.0,97017.0,0.00096901]
[1734840080218,0.53102627,97018.0,97017.0,0.00096901]
[1734840083695,0.63102627,97018.0,97017.0,0.00096901]
[1734840084324,0.63118836,97018.0,97017.0,0.00096901]
[1734840086447,0.63118836,97018.0,97017.0,0.00114021]
[1734840086853,0.1,97009.0,96995.0,0.0001714]
[1734840087057,0.66280528,97009.0,96995.0,0.0001714]
[1734840087223,0.6617744,97009.0,96995.0,0.0001714]
[1734840088147,0.66182881,97009.0,96995.0,0.0001714]
[1734840088343,0.56182881,97009.0,96995.0,0.0001714]
[1734840088848,0.66182881,97009.0,96995.0,0.0001714]
[1734840089068,0.66482881,97009.0,96995.0,0.0001714]
[1734840089271,0.56482881,97009.0,96995.0,0.0001714]
[1734840089485,0.66482881,97009.0,96995.0,0.0001714]
[1734840089661,0.56482881,97009.0,96995.0,0.0001714]
[1734840090476,0.66482881,97009.0,96995.0,0.0001714]
[1734840091475,0.69275469,97009.0,96995.0,0.0001714]
[1734840091882,0.69325052,97009.0,96995.0,0.0001714]
[1734840092288,0.7038477,97009.0,96995.0,0.0001714]
[1734840092505,0.8502477,97009.0,96995.0,0.0001714]
[1734840092712,0.85233062,97009.0,96995.0,0.0001714]
[1734840093510,0.84933062,97009.0,96995.0,0.0001714]
[1734840093718,0.85433062,97009.0,96995.0,0.0001714]
[1734840094454,0.85833062,97009.0,97008.0,0.0011714]
[1734840095424,0.85833062,97009.0,97008.0,0.0007672]
[1734840096152,0.75833062,97009.0,97008.0,0.0007672]
[1734840096304,0.82782599,97009.0,97008.0,0.0007672]
[1734840096482,0.80482599,97009.0,97008.0,0.0007672]
[1734840096832,0.70482599,97009.0,97008.0,0.0007672]
[1734840097031,0.80482599,97009.0,97008.0,0.0007672]
[1734840097185,0.1,97007.0,96995.0,0.0001714]
[1734840097385,0.206194,96996.0,96995.0,0.0001714]
[1734840097608,0.23000795,97006.0,96995.0,0.0001714]
[1734840097788,0.206188,96999.0,96995.0,0.0001714]
[1734840098174,0.10233928,96998.0,96995.0,0.0001714]
[1734840098357,0.09760897,96998.0,96995.0,0.0001714]
[1734840098770,0.09760897,96998.0,96995.0,0.0011714]
[1734840098952,0.09760897,96998.0,96995.0,0.0001714]
[1734840099750,0.10060897,96998.0,96995.0,0.0001714]
[1734840100161,0.09760897,96998.0,96995.0,0.0001714]
[1734840100339,0.10460897,96998.0,96995.0,0.0001714]
[1734840100539,0.10060897,96998.0,96995.0,0.0001714]
[1734840100734,0.10460897,96998.0,96995.0,0.0001714]
[1734840101552,0.10060897,96998.0,96995.0,0.0001714]
[1734840101995,0.10460897,96998.0,96995.0,0.0001714]
[1734840102432,0.10160897,96998.0,96995.0,0.0001714]
[1734840102633,0.0827,96996.0,96995.0,0.0001714]
[1734840102935,0.36274003,96996.0,96995.0,0.0001714]
[1734840103440,0.48574003,96996.0,96995.0,0.0001714]
[1734840104053,0.48874003,96996.0,96995.0,0.0001714]
[1734840104191,0.48574003,96996.0,96995.0,0.0001714]
[1734840104387,0.49074003,96996.0,96995.0,0.0001714]
[1734840105077,1.01733864,96996.0,96995.0,0.0001714]
[1734840105774,1.01533864,96996.0,96995.0,0.0001714]
[1734840105903,1.01733864,96996.0,96995.0,0.0001714]
[1734840106540,0.82976049,96996.0,96995.0,0.0001714]
[1734840106742,0.69802886,96996.0,96995.0,0.0001714]
[1734840106899,0.70002886,96996.0,96995.0,0.0001714]
[1734840107094,0.70302886,96996.0,96995.0,0.0001714]
[1734840107749,0.68002886,96996.0,96995.0,0.0001714]
[1734840107928,0.67702886,96996.0,96995.0,0.0001714]
[1734840108142,0.49302046,96996.0,96995.0,0.0001714]
[1734840108772,0.34602046,96996.0,96995.0,0.0001714]
[1734840108926,0.005,96996.0,96995.0,0.0001714]
[1734840109127,0.003,96996.0,96995.0,0.0001714]
[1734840109551,0.005,96996.0,96995.0,0.0001714]
[1734840109958,0.13862215,96997.0,96995.0,0.0001714]
[1734840110163,0.005,96996.0,96995.0,0.0001714]
[1734840110328,0.01,96996.0,96995.0,0.0001714]
[1734840110624,0.005,96996.0,96995.0,0.0001714]
[1734840110825,0.003,96996.0,96995.0,0.0001714]
[1734840111075,0.1033084,96997.0,96995.0,0.0001714]
[1734840111472,0.002,96996.0,96995.0,0.0001714]
[1734840111655,0.1033084,96997.0,96995.0,0.0001714]
[1734840112233,0.1013084,96997.0,96995.0,0.0001714]
[1734840112596,0.002,96996.0,96995.0,0.0001714]
[1734840113029,0.004,96996.0,96995.0,0.0001714]
[1734840113238,0.1013084,96997.0,96995.0,0.0001714]
[1734840113467,0.1033084,96997.0,96995.0,0.0001714]
[1734840113637,0.1053084,96997.0,96995.0,0.0001714]
[1734840113818,0.1033084,96997.0,96995.0,0.0001714]
[1734840113998,0.1013084,96997.0,96995.0,0.0001714]
[1734840114245,0.002,96996.0,96995.0,0.0001714]
[1734840114783,0.004,96996.0,96995.0,0.0001714]
[1734840115620,0.002,96996.0,96995.0,0.0001714]
[1734840116767,0.004,96996.0,96995.0,0.0001714]
[1734840120335,0.14262215,96996.0,96995.0,0.0001714]
[1734840121691,0.34616767,96996.0,96995.0,0.0001714]
[1734840122670,0.18882954,96996.0,96995.0,0.0001714]
[1734840124164,0.42296767,96996.0,96995.0,0.0001714]
[1734840125595,0.0808,96996.0,96995.0,0.0001714]
[1734840126735,0.42296767,96996.0,96995.0,0.0001714]
[1734840127699,0.34616767,96996.0,96995.0,0.0001714]
[1734840132302,0.44747607,96996.0,96995.0,0.0001714]
[1734840132503,0.52847607,96996.0,96995.0,0.0001714]
[1734840134291,0.80147607,96996.0,96995.0,0.0001714]
[1734840134488,0.83024237,96996.0,96995.0,0.0001714]
[1734840135278,0.86107307,96996.0,96995.0,0.0001714]
[1734840135478,0.83024237,96996.0,96995.0,0.0001714]
[1734840135686,0.86106966,96996.0,96995.0,0.0001714]
[1734840135889,0.83024237,96996.0,96995.0,0.0001714]